{"text_format":"3","workbook":"xlsx","n_sheets":1,"sheets":["ContenuSodium NEW"],"not_rendered":{"images":1},"read":"whole","date_system":"1900"}

{"sheet":"ContenuSodium NEW","index":0,"n_rows":73,"n_cols":5,"rows_kept":73,"merged":[[3,0,3,4],[5,0,5,4],[69,0,69,2]]}
[]
[]
[]
["CALCUL DE L'APPORT EN SODIUM PAR LES MEDICAMENTS"]
[]
["Consigne: \nDans la colonne C, compléter le nombre de flacons, d'ampoules, de perfusions ou de comprimés pris par jour de chaque médicament prescrit au patient.   NB: liste non exhaustive"]
[]
["MEDICAMENT","CONTENU EN SODIUM [mmol/flc] ou [mmol/cp]","NOMBRE D'EO PAR JOUR\nEntrez le nombre de flacons, perfusions ou comprimés pris par jour!","QUANTITE DE SODIUM PAR JOUR \n[mmol]\ncalcul automatique !","QUANTITE DE SODIUM PAR JOUR \n[mg]\ncalcul automatique !"]
["MEDICAMENTS INJECTABLES"]
["Albumine 20% CSL 100 mL",14,null,{"$f":"C10*B10","v":0},{"$f":"D10*22.9","v":0}]
["Amoxicillin Orpha 250 mg",0.7,null,0,{"$f":"D11*22.9","v":0}]
["Amoxicillin Orpha 500 mg",1.4,null,0,0]
["Amoxicillin Orpha 1 g",2.8,null,0,0]
["Amoxicillin Orpha 2 g",5.6,null,0,0]
["Bactrim 400/80 mg amp 5 mL",1.48,null,0,{"$f":"D15*22.9","v":0}]
["Brevibloc amp 100 mg / 10 mL",{"v":1.22,"d":"1.2"},null,{"$f":"C16*B16","v":0},{"$f":"D16*22.9","v":0}]
["Céfazoline 1 g",2.1,null,0,0]
["Céfazoline 2 g",{"v":4.218,"d":"4.2"},null,0,0]
["Ceftriaxone 1 g",3.6,null,0,0]
["Ceftriaxone 2 g",7.2,null,0,0]
["Céfuroxime 750 mg",1.7,null,0,0]
["Céfuroxime 1,5 g",3.4,null,0,0]
["Ciprofloxacine 200 mg / 100 mL",15.1,null,0,0]
["Co-amoxi iv 1.2 g",2.6,null,{"$f":"C24*B24","v":0},0]
["Co-amoxi iv 2.2 g",5.2,null,0,0]
["Ferinject 100 mg / 2 mL",0.48,null,0,0]
["Ferinject 500 mg / 10 mL",2.4,null,0,0]
["Floxapen 1 g",{"v":2.21,"d":"2.2"},null,0,0]
["Floxapen 2 g",{"v":4.427,"d":"4.4"},null,0,0]
["Fortam 2 g",{"v":4.5414,"d":"4.5"},null,0,0]
["Haemocomplettan 1 g",7.1,null,0,0]
["Imipenem - cilastatine 500 mg",1.6,null,0,0]
["Meropenem 1 g",{"v":3.92,"d":"3.9"},null,0,0]
["Pénicilline Grünenthal 1 mio UI",1.7,null,0,0]
["Pénicilline Grünenthal 10 mio UI",{"v":17,"d":"17.0"},null,0,0]
["Pipéracilline - tazobactam 2.25 g",{"$f":"2.25*2.445","v":{"v":5.50125,"d":"5.5"}},null,0,0]
["Pipéracilline - tazobactam  4.5 g",{"$f":"4.5*2.445","v":{"v":11.0025,"d":"11"}},null,{"$f":"C37*B37","v":0},0]
["NUTRITION"]
["Fresubin Original 500 mL",16.5,null,{"$f":"C39*B39","v":0},0]
["Fresubin Original Fibre 500 mL",29,null,{"$f":"C40*B40","v":0},0]
["Fresubin Energy 500 mL",21.5,null,{"$f":"C41*B41","v":0},0]
["Fresubin Energy Fibre 500 mL",21.5,null,{"$f":"C42*B42","v":0},0]
["Fresubin HP energy 500 mL",26,null,{"$f":"C43*B43","v":0},{"$f":"D43*22.9","v":0}]
["Fresubin Intensive 500 mL",38,null,{"$f":"C44*B44","v":0},0]
["Novasource GI Control 500 mL",{"v":15.283,"d":"15.3"},null,0,0]
["Novasource GI Forte 500 mL",26.2,null,{"$f":"C46*B46","v":0},0]
["Omegaflex Special 625 mL",33.5,null,0,0]
["Omegaflex Special 1250 mL",{"v":67,"d":"67.0"},null,0,0]
["Omegaflex Special 1875 mL",100.5,null,0,0]
["PeriOlimel 2,5% E 1500 mL",31.5,null,0,0]
["Smofkabiven Peripher 1206 mL",{"v":30.15,"d":"30.2"},null,0,0]
["ELECTROLYTES"]
["Sodium bicarbonate 1,4% 500 mL",83.5,null,{"$f":"C53*B53","v":0},0]
["Sodium bicarbonate 8,4% 10 mL",10,null,0,0]
["Sodium bicarbonate 8,4% 100 mL",100,null,0,0]
["Sodium chlorure  3% 500 mL",256,null,0,0]
["Sodium chlorure 20% 10 mL",34,null,0,0]
["Sodium phosphate 10 mmol/10 mL ",10,null,0,0]
["SOLUTES DE PERFUSIONS"]
["Gluco-Salin 2:1 1 L",51,null,0,0]
["NaCl 0,45 % 500 mL",38,null,{"$f":"C61*B61","v":0},0]
["NaCl 0,9 % 1 L",154,null,0,0]
["Ringer Lactate 500 mL",65,null,0,0]
["Ringer Lactate 1 L",130,null,0,0]
["MEDICAMENTS PER OS"]
["Dafalgan 500 mg cp eff",17.9,null,0,0]
["Nephrotrans 500 mg cps",6,null,0,0]
["Phosphate Sandoz 500 mg cp eff",20.4,null,0,0]
["Resonium A 15 g",65.5,null,0,0]
["APPORT TOTAL DE SODIUM PAR LES MEDICAMENTS",null,null,{"$f":"SUM(D10:D69)","v":0},{"$f":"SUM(E10:E69)","v":0}]
[]
[]
["élaboré par C. Challet / PIC / v5 / 27.8.2026"]